fUSD/lending_fUSD_20250427
["ID","MTS","AMOUNT","RATE_DAILY","PERIOD"]
[359177417,1745775041692,-534.93,0.00019999,2]
[359177419,1745775041702,-534.93,0.00019999,2]
[359177421,1745775041711,-534.93,0.00019999,2]
[359177423,1745775041720,-480.0,0.00019999,2]
[359177425,1745775041729,-534.93,0.00019999,2]
[359177427,1745775041738,-480.0,0.00019999,2]
[359177429,1745775041747,-534.93,0.00019999,2]
[359177431,1745775041757,-480.0,0.00019999,2]
[359177433,1745775041766,-534.93,0.00019999,2]
[359177435,1745775041776,-534.93,0.00019999,2]
[359177438,1745775041785,-480.0,0.00019999,2]
[359177439,1745775041795,-480.0,0.00019999,2]
[359177441,1745775041804,-534.93,0.00019999,2]
[359177443,1745775041813,-543.71,0.00019999,2]
[359177445,1745775041822,-534.93,0.00019999,2]
[359177447,1745775041830,-534.93,0.00019999,2]
[359177449,1745775041839,-534.93,0.00019999,2]
[359177451,1745775041849,-534.93,0.00019999,2]
[359177453,1745775041858,-534.93,0.00019999,2]
[359177455,1745775041867,-534.93,0.00019999,2]
[359177457,1745775041877,-534.93,0.00019999,2]
[359177459,1745775041886,-534.93,0.00019999,2]
[359177461,1745775041895,-534.93,0.00019999,2]
[359177463,1745775041904,-535.06,0.00019999,2]
[359177465,1745775041913,-358.46,0.00019999,2]
[359177467,1745775041922,-480.0,0.00019999,2]
[359177469,1745775041931,-480.0,0.00019999,2]
[359177471,1745775041941,-480.0,0.00019999,2]
[359177473,1745775041950,-480.0,0.00019999,2]
[359177475,1745775041959,-480.0,0.00019999,2]
[359177477,1745775041970,-480.0,0.00019999,2]
[359177479,1745775041979,-480.0,0.00019999,2]
[359177481,1745775041988,-480.0,0.00019999,2]
[359177483,1745775041997,-480.0,0.00019999,2]
[359177485,1745775042007,-569.71,0.00019999,2]
[359177487,1745775042017,-480.0,0.00019999,2]
[359177489,1745775042026,-224.67,0.00019999,2]
[359177491,1745775042036,-495.75,0.00019999,2]
[359177493,1745775042045,-480.0,0.00019999,2]
[359177495,1745775042056,-480.0,0.00019999,2]
[359177497,1745775042066,-219.27,0.00019999,2]
[359177499,1745775042076,-480.0,0.00019999,2]
[359177501,1745775042086,-539.81,0.00019999,2]
[359177503,1745775042095,-480.0,0.00019999,2]
[359177505,1745775042104,-235.79,0.00019999,2]
[359177507,1745775042114,-480.0,0.00019999,2]
[359177509,1745775042124,-480.0,0.00019999,2]
[359177512,1745775042134,-480.0,0.00019999,2]
[359177514,1745775042144,-480.0,0.00019999,2]
[359177516,1745775042154,-480.0,0.00019999,2]
[359177518,1745775042163,-480.0,0.00019999,2]
[359177520,1745775042173,-480.0,0.00019999,2]
[359177522,1745775042182,-468.24,0.00019999,2]
[359177524,1745775042192,-480.0,0.00019999,2]
[359177526,1745775042201,-247.02,0.00019999,2]
[359177528,1745775042211,-480.0,0.00019999,2]
[359177530,1745775042220,-480.0,0.00019999,2]
[359177532,1745775042230,-182.95,0.00019999,2]
[359177534,1745775042239,-280.17,0.00019999,2]
[359177536,1745775042248,-332.45,0.00019999,2]
[359177538,1745775042258,-1143.43,0.00019999,2]
[359177540,1745775042267,-1143.43,0.00019999,2]
[359177542,1745775042276,-1143.43,0.00019999,2]
[359177544,1745775042285,-1143.43,0.00019999,2]
[359177546,1745775042295,-1143.43,0.00019999,2]
[359177548,1745775042305,-1143.43,0.00019999,2]
[359177550,1745775042314,-1143.43,0.00019999,2]
[359177552,1745775042323,-1143.43,0.00019999,2]
[359177554,1745775042332,-1143.43,0.00019999,2]
[359177556,1745775042342,-480.0,0.00019999,2]
[359177558,1745775042355,-1143.43,0.00019999,2]
[359177560,1745775042364,-162.72,0.00019999,2]
[359177562,1745775042373,-1143.43,0.00019999,2]
[359177564,1745775042383,-1143.43,0.00019999,2]
[359177566,1745775042392,-1143.43,0.00019999,2]
[359177568,1745775042401,-312.95,0.00019999,2]
[359177570,1745775042415,-1143.43,0.00019999,2]
[359177572,1745775042424,-1143.43,0.00019999,2]
[359177574,1745775042434,-1143.43,0.00019999,2]
[359177576,1745775042443,-1143.43,0.00019999,2]
[359177578,1745775042454,-1143.43,0.00019999,2]
[359177580,1745775042463,-1143.43,0.00019999,2]
[359177582,1745775042472,-422.67,0.00019999,2]
[359177584,1745775042482,-1143.43,0.00019999,2]
[359177586,1745775042492,-1143.43,0.00019999,2]
[359177588,1745775042501,-1143.43,0.00019999,2]
[359177590,1745775042511,-1143.61,0.00019999,2]
[359177593,1745775042521,-480.0,0.00019999,2]
[359177595,1745775042530,-480.0,0.00019999,2]
[359177597,1745775042540,-480.0,0.00019999,2]
[359177599,1745775042549,-480.0,0.00019999,2]
[359177601,1745775042559,-480.0,0.00019999,2]
[359177603,1745775042568,-480.0,0.00019999,2]
[359177605,1745775042577,-480.0,0.00019999,2]
[359177607,1745775042587,-480.0,0.00019999,2]
[359177610,1745775042596,-168.75,0.00019999,2]
[359177613,1745775042605,-480.0,0.00019999,2]
[359177614,1745775042615,-480.0,0.00019999,2]
[359177616,1745775042625,-480.0,0.00019999,2]
[359177618,1745775042634,-480.0,0.00019999,2]
[359177620,1745775042644,-480.0,0.00019999,2]
[359177623,1745775042654,-480.0,0.00019999,2]
[359177626,1745775042663,-480.0,0.00019999,2]
[359177629,1745775042673,-480.0,0.00019999,2]
[359177631,1745775042682,-480.0,0.00019999,2]
[359177633,1745775042691,-512.03,0.00019999,2]
[359177635,1745775042701,-480.0,0.00019999,2]
[359177637,1745775042710,-480.0,0.00019999,2]
[359177639,1745775042720,-480.0,0.00019999,2]
[359177641,1745775042729,-480.0,0.00019999,2]
[359177643,1745775042738,-480.0,0.00019999,2]
[359177645,1745775042747,-623.98,0.00019999,2]
[359177647,1745775042757,-732.0,0.0002,2]
[359177649,1745775042767,-28245.91435712,0.0002,2]
[359177651,1745775042777,-185408.06425545,0.0002,2]
[359177671,1745775042957,-416363.72743645,0.0002,2]
[359177673,1745775042969,-8102.03243608,0.0002,2]
[359177676,1745775042985,-656.04999995,0.0002,2]
[359177678,1745775042996,-14159.43070995,0.0002,2]
[359177680,1745775043007,-457.02818783,0.0002,2]
[359177682,1745775043019,-1660.7,0.0002,2]
[359177689,1745775043068,-1316.52511726,0.000199,2]
[359177691,1745775043077,-141941.43576163,0.0002,2]
[359177693,1745775043088,-3824943.63968051,0.0002,2]
[359177695,1745775043097,-250348.14691165,0.0002,2]
[359177697,1745775043106,-2308283.49060387,0.0002,2]
[359177699,1745775043117,-379276.23136909,0.0002,2]
[359177701,1745775043128,-962.65033312,0.0002,2]
[359177703,1745775043138,-3560.19817367,0.0002,2]
[359177705,1745775043149,-1883.655,0.0002,2]
[359177708,1745775043160,-880.99925087,0.0002,2]
[359177710,1745775043171,-32510.15966868,0.0002,2]
[359177712,1745775043182,-8028.285775,0.0002,2]
[359177714,1745775043193,-907064.29456684,0.0002,2]
[359177716,1745775043202,-802876.30068551,0.0002,2]
[359177718,1745775043211,-109610.22847568,0.0002,2]
[359177720,1745775043221,-5651.57132352,0.0002,2]
[359177722,1745775043230,-198381.48791373,0.0002,2]
[359177724,1745775043239,-665485.551466,0.0002,2]
[359177726,1745775043248,-987652.37984445,0.0002,2]
[359177732,1745775043283,-665.159998,0.00019879,2]
[359177734,1745775043294,-641.79217989,0.00019879,2]
[359177737,1745775043303,-250.20782011,0.0002,2]
[359177740,1745775043314,-7855.19516512,0.0002,2]
[359177743,1745775043324,-6204.86122375,0.0002,2]
[359177747,1745775043335,-97851.96314833,0.0002,2]
[359177751,1745775043350,-326.76539602,0.0002,2]
[359177789,1745775043685,7438.96524016,0.00019,2]
[359177906,1745775045548,-1316.52511726,0.000199,2]
[359177907,1745775045560,-771.2348825,0.0002,2]
[359177908,1745775045571,-2277.23637983,0.0002,2]
[359177909,1745775045583,-8524.92475953,0.0002,2]
[359177910,1745775045608,-800.0,0.0002,2]
[359177911,1745775045620,-1028.34515858,0.0002,2]
[359177912,1745775045892,-655.68730831,0.0002,2]
[359177914,1745775173169,-208.0,0.0003618,30]
[359177915,1745775173203,-208.0,0.0003762,30]
[359177916,1745775173235,-251.0,0.00038,30]
[359177917,1745775173265,-214.05,0.00038,60]
[359177918,1745775173295,-208.0,0.0003905,30]
[359177919,1745775173324,-2000.0,0.00039994,31]
[359177920,1745775173358,-251.0,0.0004,30]
[359177921,1745775173387,-877.54133511,0.0004,120]
[359177922,1745775173418,-22545.23002434,0.0004,30]
[359177923,1745775173449,-307.48700079,0.0004,30]
[359177924,1745775173479,-208.0,0.0004048,30]
[359177925,1745775173509,-2110.0,0.00040596,30]
[359177926,1745775173540,-500.0,0.00041,30]
[359177927,1745775173572,-237.5,0.00041095,120]
[359177928,1745775198029,242.533,0.00041095,30]
[359177929,1745775250983,1000.0,0.00041096,120]
[359177932,1745775257781,1000.0,0.00019091,2]
[359177935,1745775313244,333.85,0.00017115,2]
[359177936,1745775314788,-333.85,0.00019379,2]
[359177937,1745775455629,250.0,0.00017,2]
[359177938,1745775456580,161.23074267,0.00019,2]
[359177939,1745775456603,138.76925733,0.00019,2]
[359177940,1745775483995,2621.0,0.00041096,38]
[359177941,1745775599729,3000.0,0.00041096,30]
[359177942,1745775624716,150.0,0.00019175,7]
[359177943,1745775634931,227.6,0.00041095,120]
[359177944,1745775644367,3000.0,0.00041096,30]
[359177945,1745775751126,3000.0,0.00041096,30]
[359177946,1745775793959,173.13788476,0.0004,30]
[359177947,1745775898423,-173.32111187,0.00019355,2]
[359177948,1745775902772,-150.0,0.00019355,2]
[359177949,1745775907365,-178.68420621,0.00019355,2]
[359177950,1745775911210,-298.4580729,0.00019355,2]
[359177951,1745775917926,-300.0,0.00019355,2]
[359177952,1745775921739,-226.4037,0.00019355,2]
[359177953,1745775927046,-197.65509821,0.00019355,2]
[359177954,1745775932742,-305.62121872,0.00019355,2]
[359177955,1745775938521,-223.36317095,0.00019355,2]
[359177956,1745775943029,-457.99579634,0.00019355,2]
[359177957,1745775945779,-409.26266716,0.00019355,2]
[359177958,1745775949965,-709.26266716,0.00019355,2]
[359177959,1745775952279,163.52,0.0001909,2]
[359177960,1745775954370,-326.54782484,0.00019355,2]
[359177961,1745775958791,-366.50582,0.00019355,2]
[359177962,1745775974893,-300.0,0.00019355,2]
[359177963,1745775982428,-206.94635516,0.00019355,2]
[359177964,1745775991496,-300.0,0.00019355,2]
[359177965,1745775994786,-250.0,0.00019355,2]
[359177966,1745776001889,-350.0,0.00019355,2]
[359177967,1745776004674,-150.0,0.00019355,2]
[359177968,1745776050739,-150.0,0.00019355,2]
[359177969,1745776054100,-340.12851258,0.00019355,2]
[359177970,1745776062322,-250.0,0.00019355,2]
[359177971,1745776067137,-341.27216806,0.00019355,2]
[359177972,1745776072978,-252.61519864,0.00019355,2]
[359177973,1745776078798,-179.0,0.00019355,2]
[359177974,1745776084510,3956609.920755,0.00041,30]
[359177975,1745776085679,-201.6850009,0.00019355,2]
[359177976,1745776089447,-453.09990823,0.00019355,2]
[359177977,1745776094573,-186.50630611,0.00019355,2]
[359177981,1745776098870,-109.17869548,0.00019355,2]
[359177983,1745776231692,-200.0,0.00019576,2]
[359177984,1745776231702,-250.0,0.00019576,2]
[359177985,1745776231711,-189.85142212,0.00019699,2]
[359177986,1745776231721,-200.0,0.00019707,2]
[359177987,1745776231730,-189.8514221,0.00019786,2]
[359177988,1745776231740,-150.2561415,0.00019799,2]
[359177989,1745776231749,-253.27601428,0.00019799,2]
[359177990,1745776231788,-46.72398572,0.00019799,2]
[359177991,1745776231797,-572.8302806,0.00019799,2]
[359177992,1745776231855,-627.1697194,0.00019799,2]
[359177993,1745776231864,-300.0,0.00019799,2]
[359177994,1745776231874,-3370.37594229,0.000198,2]
[359177995,1745776231909,-16141.01789372,0.000198,2]
[359177996,1745776231919,-367.01856735,0.00019811,2]
[359177997,1745776231928,-189.8514221,0.00019872,2]
[359177998,1745776231938,-173.13788476,0.000199,2]
[359177999,1745776231947,-6534.76088945,0.000199,2]
[359178000,1745776231956,-203.089,0.00019972,2]
[359178001,1745776231966,-351.43634205,0.00019989,2]
[359178002,1745776231976,-500.0,0.00019989,2]
[359178003,1745776231985,-500.0,0.00019989,2]
[359178004,1745776231995,-500.0,0.00019989,2]
[359178005,1745776232004,-157.099262,0.00019989,2]
[359178006,1745776232014,-230.37,0.0001999,2]
[359178009,1745776232023,-230.37,0.0001999,2]
[359178012,1745776232032,-230.37,0.0001999,2]
[359178015,1745776232042,-230.37,0.0001999,2]
[359178018,1745776232051,-230.37,0.0001999,2]
[359178021,1745776232060,-230.37,0.0001999,2]
[359178023,1745776232070,-230.37,0.0001999,2]
[359178025,1745776232079,-230.37,0.0001999,2]
[359178027,1745776232089,-230.37,0.0001999,2]
[359178029,1745776232098,-230.37,0.0001999,2]
[359178031,1745776232107,-230.37,0.0001999,2]
[359178033,1745776232117,-230.37,0.0001999,2]
[359178036,1745776232130,-230.37,0.0001999,2]
[359178038,1745776232139,-230.37,0.0001999,2]
[359178040,1745776232148,-230.37,0.0001999,2]
[359178041,1745776232157,-230.37,0.0001999,2]
[359178043,1745776232166,-230.37,0.0001999,2]
[359178044,1745776232175,-230.37,0.0001999,2]
[359178046,1745776232185,-230.37,0.0001999,2]
[359178048,1745776232194,-230.37,0.0001999,2]
[359178050,1745776232203,-230.37,0.0001999,2]
[359178052,1745776232212,-230.37,0.0001999,2]
[359178053,1745776232222,-230.37,0.0001999,2]
[359178054,1745776232231,-230.37,0.0001999,2]
[359178055,1745776232241,-230.37,0.0001999,2]
[359178056,1745776232250,-230.37,0.0001999,2]
[359178057,1745776232259,-230.37,0.0001999,2]
[359178058,1745776232268,-230.37,0.0001999,2]
[359178059,1745776232278,-230.37,0.0001999,2]
[359178060,1745776232288,-230.37,0.0001999,2]
[359178061,1745776232297,-230.37,0.0001999,2]
[359178062,1745776232306,-230.37,0.0001999,2]
[359178063,1745776232315,-230.37,0.0001999,2]
[359178064,1745776232326,-230.37,0.0001999,2]
[359178065,1745776232335,-230.37,0.0001999,2]
[359178066,1745776232344,-230.37,0.0001999,2]
[359178067,1745776232353,-230.37,0.0001999,2]
[359178068,1745776232362,-230.37,0.0001999,2]
[359178069,1745776232371,-230.37,0.0001999,2]
[359178070,1745776232380,-230.37,0.0001999,2]
[359178071,1745776232390,-230.37,0.0001999,2]
[359178072,1745776232400,-230.37,0.0001999,2]
[359178073,1745776232409,-230.37,0.0001999,2]
[359178074,1745776232419,-500.0,0.00019998,2]
[359178075,1745776232428,-189.78721797,0.00019999,2]
[359178076,1745776237742,-230.37,0.0001999,2]
[359178077,1745776237752,-230.37,0.0001999,2]
[359178078,1745776237761,-230.37,0.0001999,2]
[359178079,1745776237771,-230.37,0.0001999,2]
[359178080,1745776237781,-230.37,0.0001999,2]
[359178081,1745776237790,-230.37,0.0001999,2]
[359178082,1745776237800,-230.37,0.0001999,2]
[359178083,1745776237809,-230.37,0.0001999,2]
[359178084,1745776237819,-230.37,0.0001999,2]
[359178085,1745776237829,-230.37,0.0001999,2]
[359178086,1745776237840,-230.37,0.0001999,2]
[359178087,1745776237851,-230.37,0.0001999,2]
[359178088,1745776237861,-230.37,0.0001999,2]
[359178089,1745776237870,-230.37,0.0001999,2]
[359178090,1745776237880,-230.37,0.0001999,2]
[359178091,1745776237889,-230.37,0.0001999,2]
[359178092,1745776237899,-230.37,0.0001999,2]
[359178093,1745776237908,-230.37,0.0001999,2]
[359178094,1745776237918,-230.37,0.0001999,2]
[359178095,1745776237927,-230.37,0.0001999,2]
[359178096,1745776237937,-230.37,0.0001999,2]
[359178097,1745776237946,-230.37,0.0001999,2]
[359178098,1745776237956,-230.37,0.0001999,2]
[359178099,1745776237965,-230.37,0.0001999,2]
[359178100,1745776237975,-230.37,0.0001999,2]
[359178101,1745776237984,-230.37,0.0001999,2]
[359178102,1745776237993,-230.37,0.0001999,2]
[359178103,1745776238003,-230.37,0.0001999,2]
[359178104,1745776238012,-230.37,0.0001999,2]
[359178105,1745776238022,-230.37,0.0001999,2]
[359178106,1745776238031,-230.37,0.0001999,2]
[359178107,1745776238041,-230.37,0.0001999,2]
[359178108,1745776238051,-230.37,0.0001999,2]
[359178109,1745776238060,-230.37,0.0001999,2]
[359178111,1745776238070,-230.37,0.0001999,2]
[359178112,1745776238080,-230.37,0.0001999,2]
[359178113,1745776238090,-230.37,0.0001999,2]
[359178114,1745776238099,-230.37,0.0001999,2]
[359178115,1745776238109,-230.37,0.0001999,2]
[359178117,1745776238120,-230.37,0.0001999,2]
[359178118,1745776238130,-230.37,0.0001999,2]
[359178119,1745776238139,-230.37,0.0001999,2]
[359178120,1745776238149,-230.37,0.0001999,2]
[359178121,1745776238158,-230.37,0.0001999,2]
[359178122,1745776238168,-230.37,0.0001999,2]
[359178123,1745776238177,-230.37,0.0001999,2]
[359178124,1745776238186,-230.37,0.0001999,2]
[359178125,1745776238196,-230.37,0.0001999,2]
[359178126,1745776238205,-230.37,0.0001999,2]
[359178127,1745776238215,-230.37,0.0001999,2]
[359178129,1745776238224,-230.37,0.0001999,2]
[359178131,1745776238233,-230.37,0.0001999,2]
[359178133,1745776238243,-230.37,0.0001999,2]
[359178135,1745776238255,-230.37,0.0001999,2]
[359178137,1745776238264,-230.37,0.0001999,2]
[359178139,1745776238273,-230.37,0.0001999,2]
[359178141,1745776238282,-310.21278203,0.00019999,2]
[359178143,1745776238291,-500.0,0.00019999,2]
[359178145,1745776238301,-500.0,0.00019999,2]
[359178147,1745776238310,-500.0,0.00019999,2]
[359178148,1745776238319,-500.0,0.00019999,2]
[359178150,1745776238329,-500.0,0.00019999,2]
[359178152,1745776238338,-500.0,0.00019999,2]
[359178154,1745776238348,-500.0,0.00019999,2]
[359178156,1745776238358,-500.0,0.00019999,2]
[359178158,1745776238368,-500.0,0.00019999,2]
[359178161,1745776238378,-500.0,0.00019999,2]
[359178162,1745776238387,-500.0,0.00019999,2]
[359178165,1745776238396,-478.65590769,0.00019999,2]
[359178166,1745776238406,-500.0,0.00019999,2]
[359178167,1745776238415,-500.0,0.00019999,2]
[359178168,1745776238425,-500.0,0.00019999,2]
[359178169,1745776238436,-500.0,0.00019999,2]
[359178170,1745776238447,-500.0,0.00019999,2]
[359178171,1745776238457,-500.0,0.00019999,2]
[359178172,1745776238466,-480.0,0.00019999,2]
[359178173,1745776238476,-320.0,0.00019999,2]
[359178174,1745776238486,-500.0,0.00019999,2]
[359178175,1745776238495,-500.0,0.00019999,2]
[359178176,1745776238504,-480.0,0.00019999,2]
[359178177,1745776238514,-286.49833914,0.00019999,2]
[359178178,1745776238524,-500.0,0.00019999,2]
[359178179,1745776238534,-400.0,0.00019999,2]
[359178180,1745776238545,-480.0,0.00019999,2]
[359178181,1745776238555,-480.0,0.00019999,2]
[359178182,1745776238564,-480.0,0.00019999,2]
[359178183,1745776238573,-528.66,0.00019999,2]
[359178184,1745776238584,-659.0,0.0002,2]
[359178185,1745776238594,-44942.48080348,0.0002,2]
[359178186,1745776238606,-349.03655998,0.0002,2]
[359178187,1745776238617,-922.34510238,0.0002,2]
[359178188,1745776238629,-26536.75640405,0.0002,2]
[359178189,1745776238641,-106753.61792684,0.0002,2]
[359178190,1745776238651,-214665.42267091,0.0002,2]
[359178192,1745776239885,-1325.0000005,0.0002,2]
[359178193,1745776239992,-9585.71081856,0.0002,2]
[359178194,1745776240314,-107.78875068,0.0002,2]
[359178195,1745776240325,-4531.67397954,0.0002,2]
[359178196,1745776240336,-92012.94236058,0.0002,2]
[359178197,1745776240357,-95545.99999999,0.0002,2]
[359178239,1745776242753,-504.76511919,0.0002,2]
[359178240,1745776242765,-87.23488081,0.0002,2]
[359178241,1745776242775,-781.99985344,0.0002,2]
[359178242,1745776242807,-419.3400005,0.0002,2]
[359178243,1745776242914,-841.23567221,0.0002,2]
[359178244,1745776242927,-434.99524892,0.0002,2]
[359178245,1745776242939,-1003.90985324,0.0002,2]
[359178246,1745776243022,-6880.49999982,0.0002,2]
[359178247,1745776243034,-367.85789054,0.0002,2]
[359178248,1745776243128,-15499.99999999,0.0002,2]
[359178312,1745776246006,-303.33273231,0.000199,2]
[359178313,1745776246016,-1446.66726769,0.0002,2]
[359178314,1745776246059,-9537.95,0.0002,2]
[359178315,1745776246071,-1114.5,0.0002,2]
[359178317,1745776330590,1000.0,0.00019182,2]
[359178318,1745776350337,-410.79277193,0.00019776,2]
[359178319,1745776389843,161.147851,0.0002,5]
[359178320,1745776438334,164.726478,0.0002,5]
[359178321,1745776464674,1231.78,0.00019126,2]
[359178322,1745776590562,132046.6524933,0.00036,60]
[359178323,1745776594464,-150.7684245,0.00019758,2]
[359178324,1745776603063,656.04,0.00017172,2]
[359178325,1745776635897,830.45,0.00019058,2]
[359178326,1745776653257,165.93,0.00019058,2]
[359178327,1745776687443,-300.0,0.00019436,2]
[359178328,1745776691630,2374.97,0.00019067,2]
[359178398,1745776742206,-150.0,0.00019338,2]
[359178399,1745776746054,-150.0,0.00019338,2]
[359178400,1745776851563,150.0,0.00019042,2]
[359178401,1745776936667,4590.83,0.00018965,2]
[359178402,1745776936692,4878.6,0.00018965,2]
[359178403,1745776984191,163.52,0.00018965,2]
[359178404,1745777032537,163.809634,0.0002,5]
[359178405,1745777033499,163.809634,0.0002,10]
[359178406,1745777040568,299.99,0.00019899,7]
[359178407,1745777049799,161.147851,0.0002,5]
[359178408,1745777050651,161.147851,0.0002,10]
[359178410,1745777077444,758.82955545,0.0001928,2]
[359178411,1745777088130,306.65,0.0001895,2]
[359178412,1745777115390,150.0,0.00018939,7]
[359178413,1745777205291,1605.26684676,0.00018981,2]
[359178414,1745777271698,2287.13359779,0.000192,2]
[359178415,1745777271723,5879.5106138,0.000192,2]
[359178416,1745777283106,4120.4893862,0.00018946,2]
[359178417,1745777283130,5648.3806138,0.00018946,2]
[359178418,1745777289598,250.0,0.00017,2]
[359178419,1745777290681,300.0,0.00019,2]
[359178420,1745777390497,-201.94801831,0.00019381,2]
[359178421,1745777394203,-139.37775914,0.00019381,2]
[359178422,1745777431938,-356.04,0.00019436,2]
[359178423,1745777431948,-200.0,0.00019481,2]
[359178424,1745777431957,-166.53,0.00019526,2]
[359178425,1745777431967,-146.91910684,0.00019716,2]
[359178426,1745777431980,-53.08089316,0.00019716,2]
[359178427,1745777431989,-499.22937338,0.00019789,2]
[359178428,1745777432000,-259.60018207,0.00019789,2]
[359178429,1745777432011,-206.7568,0.00019799,2]
[359178430,1745777432021,-1200.0,0.00019872,2]
[359178431,1745777432030,-300.0,0.00019872,2]
[359178432,1745777432039,-300.0,0.00019872,2]
[359178433,1745777432049,-500.0,0.00019873,2]
[359178434,1745777432060,-446.91636506,0.00019873,2]
[359178435,1745777432069,-500.90438284,0.00019873,2]
[359178436,1745777432079,-500.0,0.00019873,2]
[359178437,1745777432088,-500.0,0.00019873,2]
[359178438,1745777432097,-192.10564194,0.00019873,2]
[359178439,1745777432109,-308.93626171,0.00019873,2]
[359178440,1745777432119,-288.03934625,0.00019873,2]
[359178441,1745777432136,-211.96065375,0.00019873,2]
[359178442,1745777432146,-171.1681045,0.00019898,2]
[359178443,1745777432157,-837.50123731,0.00019898,2]
[359178444,1745777432167,-114.32876269,0.00019898,2]
[359178445,1745777432178,-69.79337753,0.00019898,2]
[359178446,1745777432188,-173.40584896,0.00019899,2]
[359178447,1745777432197,-500.0,0.00019899,2]
[359178448,1745777432207,-158.15635648,0.00019899,2]
[359178450,1745777432216,-174.06883378,0.00019899,2]
[359178452,1745777432226,-156.42690366,0.00019899,2]
[359178454,1745777432237,-343.57309634,0.00019899,2]
[359178456,1745777432247,-85.01830594,0.00019899,2]
[359178459,1745777432267,-164.98169406,0.00019899,2]
[359178463,1745777432277,-500.0,0.00019899,2]
[359178465,1745777432287,-500.0,0.00019899,2]
[359178467,1745777432297,-500.0,0.00019899,2]
[359178469,1745777432307,-500.0,0.00019899,2]
[359178471,1745777432316,-500.0,0.00019899,2]
[359178474,1745777432325,-500.0,0.00019899,2]
[359178476,1745777432335,-500.0,0.00019899,2]
[359178480,1745777432344,-500.0,0.00019899,2]
[359178482,1745777432354,-314.76270315,0.00019899,2]
[359178485,1745777432363,-500.0,0.00019899,2]
[359178488,1745777432372,-500.0,0.00019899,2]
[359178491,1745777432381,-500.0,0.00019899,2]
[359178494,1745777432391,-600.0,0.00019899,2]
[359178496,1745777432399,-999.99,0.00019899,2]
[359178498,1745777432409,-2350.11,0.00019899,2]
[359178500,1745777432418,-296.48,0.00019899,2]
[359178501,1745777432428,-724.86,0.00019899,2]
[359178502,1745777432439,-723.3,0.00019899,2]
[359178503,1745777432449,-150.99,0.00019899,2]
[359178504,1745777432459,-14610.0,0.00019899,2]
[359178505,1745777432468,-159.40437346,0.00019899,2]
[359178506,1745777432478,-8857.72748488,0.00019899,2]
[359178507,1745777432487,-158.08935038,0.00019899,2]
[359178508,1745777432496,-9758.37510276,0.00019899,2]
[359178510,1745777437890,-95.03489724,0.00019899,2]
[359178511,1745777437900,-439.79507276,0.00019899,2]
[359178512,1745777437912,-3212.18350575,0.00019899,2]
[359178513,1745777437993,-6348.01142149,0.00019899,2]
[359178514,1745777438003,-8857.72748487,0.00019899,2]
[359178515,1745777438013,-8857.72748487,0.00019899,2]
[359178516,1745777438023,-159.40437344,0.00019899,2]
[359178517,1745777438033,-8857.72748487,0.00019899,2]
[359178518,1745777438043,-8857.72748487,0.00019899,2]
[359178519,1745777438052,-8857.72748487,0.000199,2]
[359178520,1745777438061,-159.40437344,0.000199,2]